Cogmind - Beta 16.1 @@@ ROGUE MODE // 2026.04.20 @ 19:04:06 Player: Thqwib-Linux Result: Destroyed by G-47 Trooper with Particle Gun Performance ------------- Evolutions (2) 1000 Regions Visited (5) 1000 Robots Destroyed (70) 350 Value Destroyed (2134) 2134 Prototype IDs (3) 60 Alien Tech Used (0) 0 Bonus (-9) -9 TOTAL SCORE: 4535 Bonus ------- Friendly Fire -9 Cogmind --------- Core Integrity 0/550 Matter 119/300 Energy 160/160 System Corruption 0% Temperature Cool (9) Movement Walking (112) Location -8/Materials Parts ------- > --- POWER (1) -------- Light Nuclear Core > --- PROPULSION (4) --- Aluminum Leg Aluminum Leg Carbon-fiber Leg VSS Leg > --- UTILITY (4) ------ Cooling System Large Storage Unit Improved Targeting Computer Weapon Shielding > --- WEAPON (2) ------- Heavy Assault Rifle Enhanced Autogun > --- INVENTORY (15) --- Improved Heat Sink Structural Scanner Experimental Sensor Array Improved Signal Interpreter Pulse Rifle Assault Rifle High-powered Shotgun High-powered Shotgun Improved Grenade Launcher Maul Peak State ------------ > --- POWER ------------ Light Deuterium Engine > --- PROPULSION ------- VSS Leg VSS Leg VSS Leg > --- UTILITY ---------- Large Storage Unit Hardened Medium Armor Plating Hardlight Generator > --- WEAPON ----------- Enhanced Autogun Enhanced Autogun > --- INVENTORY -------- Light Treads Structural Scanner Experimental Sensor Array Improved Signal Interpreter Assault Rifle Assault Rifle Heavy Assault Rifle High-powered Shotgun High-powered Shotgun Improved Light Cannon Rocket Launcher [Rating: 29] Favorites ----------- Power Ion Engine Engine Ion Engine Power Core Light Nuclear Core Propulsion Light Treads Treads Light Treads Leg VSS Leg Wheel Compact Wheel Utility Large Storage Unit Device Cooling System Storage Large Storage Unit Processor Improved Targeting Computer Protection Light Armor Plating Weapon Improved Light Cannon Energy Gun Precision Beam Rifle Ballistic Gun Enhanced Autogun Ballistic Cannon Improved Light Cannon Launcher Rocket Launcher Build | -11 -10 -10 -10 -9 -8 ------- Run | Yrd Mat Min Exi Min Mat Slots Evolved 4 | . . . . . 4 Power . | . . . . . . Propulsion 2 | . . . . . 2 Utility 2 | . . . . . 2 Weapon . | . . . . . . Parts Attached 53 | 3 10 1 . 3 36 Power 5 | . 1 . . . 4 Engine 3 | . 1 . . . 2 Core 2 | . . . . . 2 Reactor . | . . . . . . Propulsion 16 | 2 . 1 . 1 12 Treads 7 | 1 . . . 1 5 Leg 6 | . . . . . 6 Wheel 3 | 1 . 1 . . 1 Hover . | . . . . . . Flight . | . . . . . . Utility 15 | 1 4 . . 1 9 Device 5 | 1 1 . . . 3 Storage 3 | . 2 . . . 1 Processor 1 | . . . . . 1 Hackware . | . . . . . . Protection 6 | . 1 . . 1 4 Artifact . | . . . . . . Weapon 17 | . 5 . . 1 11 Energy Gun 2 | . . . . . 2 Energy Cannon . | . . . . . . Ballistic Gun 6 | . . . . . 6 Ballistic Cannon 7 | . 4 . . . 3 Launcher 2 | . 1 . . 1 . Special Weapon . | . . . . . . Impact Weapon . | . . . . . . Slashing Weapon . | . . . . . . Piercing Weapon . | . . . . . . Special Melee Weapon . | . . . . . . Unidentified Prototypes 3 | . . . . . 3 Parts Lost 21 | . . 1 . . 20 Power 3 | . . . . . 3 Propulsion 8 | . . 1 . . 7 Utility 6 | . . . . . 6 Weapon 4 | . . . . . 4 Highest Loss Streak 14 | . . 1 . . 14 To Critical Strikes . | . . . . . . Average Backups 10 | 5 10 12 13 13 9 Power . | 1 1 1 1 1 . Propulsion 1 | 4 2 2 2 2 . Utility 2 | . 2 3 4 4 2 Weapon 5 | . 5 6 6 6 5 Tool/Special . | . . . . . . Unused Backups 19 | 7 3 . . . 9 Power 3 | 1 1 . . . 1 Propulsion 2 | 2 . . . . . Utility 5 | 1 1 . . . 3 Weapon 9 | 3 1 . . . 5 Tool/Special . | . . . . . . Average Slot Usage (%) 88 | . 98 100 100 100 78 Engine 9 | . 13 14 14 14 5 Core 1 | . . . . . 2 Treads 11 | . 14 14 14 14 9 Leg 6 | . . . . . 13 Wheel 8 | . 14 14 14 14 2 Device 5 | . 3 . . . 9 Storage 11 | . 14 14 14 14 9 Processor 1 | . . . . . 3 Protection 10 | . 9 14 14 14 7 Ballistic Gun 4 | . 1 . . . 9 Ballistic Cannon 16 | . 26 28 28 18 6 Peak Build Rating 29 | 7 11 11 11 11 29 Average Rating 14 | 6 9 10 11 11 19 On Entrance 9 | 6 7 10 11 11 11 Avg Prop Armor Cover (%) 9 | . 9 8 8 8 11 Naked Turns . | . . . . . . Heaviest Build 44 | 13 36 36 36 36 44 Greatest Support 60 | 20 16 16 10 20 60 Greatest Overweight (x) 13 | . 2 3 3 3 13 Average Overweight (x) 1 | . 1 2 3 2 1 Largest Inventory Capacity 15 | 8 15 15 15 15 15 Average Capacity 14 | 8 13 15 15 15 15 Most Carried 14 | 5 13 13 13 14 14 Average Carried 10 | 4 10 12 13 13 9 Final Capacity 15 | 8 15 15 15 15 15 Final Carried 13 | 3 13 13 13 13 10 Class Distribution -------------------- 79% | Mutant 20% | Scavenger-Mutant Dominant Class ---------------- Mutant | -10/Materials Mutant | -10/Mines Mutant | -10/Exiles Mutant | -9/Mines Mutant | -8/Materials Resources | -11 -10 -10 -10 -9 -8 ----------- Run | Yrd Mat Min Exi Min Mat Matter Collected 1818 | 228 366 141 . 202 881 Remotely . | . . . . . . Salvage Created 2087 | 103 350 196 . 174 1264 Parts 113 | 5 20 13 . 15 60 Haulers Intercepted 3 | . 2 . . . 1 Recyclers Shooed 7 | 1 . . . . 6 Parts Field Recycled . | . . . . . . Retrieved Matter . | . . . . . . Parts Self-Destructed . | . . . . . . Prevented . | . . . . . . Parts Restored . | . . . . . . Kills | -11 -10 -10 -10 -9 -8 ------- Run | Yrd Mat Min Exi Min Mat Combat Hostiles Destroyed 68 | . 12 6 . 25 25 Guns 8 | . . . . . 8 Cannons 33 | . 9 6 . 4 14 AOE 27 | . 3 . . 21 3 Classes Destroyed 15 | 2 5 . . 2 6 Worker 2 | . 1 . . . 1 Builder 1 | . . . . . 1 Tunneler 3 | 1 . 1 . . 1 Hauler 3 | . 2 . . . 1 Recycler 4 | 1 . . . . 3 Mechanic 1 | . . . . . 1 Operator 1 | . . . . . 1 Watcher 1 | . 1 . . . . Swarmer 11 | . 3 . . 8 . Grunt 33 | . 9 6 . 2 16 Brawler 2 | . . . . 1 1 Duelist 1 | . . . . . 1 Sentry 3 | . . . . . 3 Specialist 4 | . . . . . 4 Assembled 14 | . . . . 14 . Best Kill Streak 15 | 1 3 6 . 15 7 Combat Bots Only 15 | . 3 5 . 15 5 Max Kills in Single Turn 4 | 1 2 1 . 4 3 Gunslinging . | . . . . . . Exploded 4 | . 2 . . 4 3 Melee . | . . . . . . Uniques/NPCs Destroyed . | . . . . . . Combat | -11 -10 -10 -10 -9 -8 -------- Run | Yrd Mat Min Exi Min Mat Hostile Shots Fired 372 | . 35 16 . 22 299 Missed 113 | . 8 5 . 8 92 Hits 259 | . 27 11 . 14 207 Melee 1 | . . . . . 1 Projectile 258 | . 27 11 . 14 206 Critical Strikes 7 | . . . . . 7 Actively Blocked 1 | . . . . . 1 Damage Taken 3971 | . 321 123 . 135 3392 Core 635 | . 52 20 . . 563 Absorbed by Shields 144 | . . . . . 144 Redirected to Shielding 42 | . . . . . 42 Regen/Repaired (Parts) 412 | . 126 . . . 286 Core Remaining (%) 85 | 100 . . . 71 . Volleys Fired 194 | 14 32 11 . 17 120 Largest 2 | 2 2 2 . 2 2 Hottest 66 | 40 66 66 . 66 66 Shots Fired 371 | 28 62 22 . 22 237 Gun 140 | 28 2 . . . 110 Cannon 216 | . 58 22 . 10 126 Launcher 15 | . 2 . . 12 1 Special . | . . . . . . Kinetic 356 | 28 60 22 . 10 236 Thermal . | . . . . . . Explosive 15 | . 2 . . 12 1 Electromagnetic . | . . . . . . Robot Hit Streak 10 | 6 6 5 . 5 10 Robot Miss Streak 6 | 3 4 2 . 2 6 Penetration Max . | . . . . . . Secondary Targets 2 | . . . . . 2 Max Gunslinging Chain 1 | . . . . . 1 Shots Hit Robots 229 | 17 32 13 . 12 155 Core Hits 135 | 4 17 7 . 42 65 Critical Kills . | . . . . . . Critical Parts Destroyed . | . . . . . . Critical Strikes 9 | . 1 1 . 2 5 Blast 9 | . 1 1 . 2 5 Melee Attacks . | . . . . . . Impact . | . . . . . . Slashing . | . . . . . . Piercing . | . . . . . . Sneak Attacks . | . . . . . . Combat Hostiles . | . . . . . . Follow-up Attacks . | . . . . . . Damage Inflicted 6091 | 151 772 322 . 1353 3493 Guns 1392 | 151 . . . . 1241 Cannons 2916 | . 673 322 . 179 1742 Explosions 1747 | . 99 . . 1174 474 Melee . | . . . . . . Ramming 36 | . . . . . 36 Kinetic 4308 | 151 673 322 . 179 2983 Thermal 330 | . . . . . 330 Explosive 1417 | . 99 . . 1174 144 Electromagnetic . | . . . . . . Impact . | . . . . . . Slashing . | . . . . . . Piercing . | . . . . . . Highest Corruption . | . . . . . . Average Corruption . | . . . . . . Corruption Purged . | . . . . . . Corruption Blocked . | . . . . . . Overload Shots . | . . . . . . Overflow Damage 41 | . 1 . . 13 27 Projectiles 34 | . . . . 13 21 Explosions 7 | . 1 . . . 6 Melee . | . . . . . . Knockbacks 34 | . 6 5 . . 23 Impact . | . . . . . . Kinetic 26 | . 6 5 . . 15 Secondary 8 | . . . . . 8 Self-Inflicted Damage 103 | . . . . . 103 Shots 2 | . . . . . 2 Rammed 1 | . . . . . 1 Targets Rammed 8 | . . . . . 8 Kicked 7 | . . . . . 7 Crushed . | . . . . . . Highest Temperature 633 | . 198 87 . 60 633 Average Temperature 63 | . 51 36 . 24 84 Received Heat Transfer 1409 | . 174 66 . 18 1151 Effects 8 | . . . . . 8 Shutdowns 2 | . . . . . 2 Energy Bleed 1 | . . . . . 1 Matter Decay 3 | . . . . . 3 Short Circuit 2 | . . . . . 2 Siege Activations . | . . . . . . Martial Activations . | . . . . . . Shielding Activations . | . . . . . . Robots Disrupted . | . . . . . . Combat Hostiles . | . . . . . . Robots Corrupted . | . . . . . . Combat Hostiles . | . . . . . . Parts Fried . | . . . . . . Impact Corruptions . | . . . . . . Robots Melted . | . . . . . . Combat Hostiles . | . . . . . . Parts Melted . | . . . . . . Heat Transferred 200 | . . . . . 200 Parts Sabotaged . | . . . . . . Parts Stolen . | . . . . . . Parts Stripped . | . . . . . . Power Chain Reactions . | . . . . . . Alert | -11 -10 -10 -10 -9 -8 ------- Run | Yrd Mat Min Exi Min Mat Maximum Alert Level 1 | . . . . 1 1 Low Security (%) 96 | 100 100 100 . 88 95 Level 1 3 | . . . . 11 4 Level 2 . | . . . . . . Level 3 . | . . . . . . Level 4 . | . . . . . . Level 5 . | . . . . . . High Security . | . . . . . . Max Security . | . . . . . . Peak Influence 223 | 5 110 80 . 223 220 Initial 82 | . . 21 . . 82 Average 62 | 1 52 15 . 105 79 Influence Increases 1795 | 10 425 126 . 343 891 Destroy 0b10 Robot/C 1080 | . 240 120 . 220 500 Destroy 0b10 Robot/NC 80 | 10 20 5 . . 45 Destroy Leader 208 | . 66 . . 30 112 Successful Hack 37 | . 5 . . . 32 Disable Machine 135 | . 75 . . 15 45 Destroy Structure 105 | . 4 1 . 63 37 Partial Spotted 15 | . . . . . 15 Lose Combat Pursuer 135 | . 15 . . 15 105 Influence Decreases 1708 | 10 371 168 12 130 1017 Entered New Map 176 | . . 33 12 . 131 Time Decay 1221 | 10 371 125 . 130 585 Lost Part 203 | . . 10 . . 193 Purge Threat 108 | . . . . . 108 Squads Dispatched 12 | . 4 . . . 8 Investigation 3 | . 3 . . . . Extermination . | . . . . . . Reinforcement 5 | . 1 . . . 4 Assault . | . . . . . . Garrison 4 | . . . . . 4 Intercept . | . . . . . . Searches Triggered . | . . . . . . Construction Impeded . | . . . . . . Haulers Reinforced . | . . . . . . Active Scanning Responses . | . . . . . . Cargo Convoy Interrupts . | . . . . . . Stealth | -11 -10 -10 -10 -9 -8 --------- Run | Yrd Mat Min Exi Min Mat Distress Signals 3 | . 1 . . . 2 Communications Jammed . | . . . . . . Distress Signals . | . . . . . . Times Spotted 101 | . 17 6 . 28 50 Peak Tracking Total 9 | . 4 3 . 9 8 Tactical Retreats 6 | . 1 . . 1 4 Traps | -11 -10 -10 -10 -9 -8 ------- Run | Yrd Mat Min Exi Min Mat Traps Triggered 3 | . 3 . . . . Indirectly . | . . . . . . Trap Hack Attempts . | . . . . . . Triggered . | . . . . . . Disarmed . | . . . . . . Reprogrammed . | . . . . . . Reused . | . . . . . . Traps Extracted . | . . . . . . Installed . | . . . . . . Triggered . | . . . . . . Machines | -11 -10 -10 -10 -9 -8 ---------- Run | Yrd Mat Min Exi Min Mat Machines Disabled 9 | . 5 . . 1 3 Max in Single Turn 2 | . 2 . . 1 1 Machines Repaired . | . . . . . . Machines Dismantled . | . . . . . . Machines Sabotaged . | . . . . . . Overloaded Fab Kills . | . . . . . . Hacking | -11 -10 -10 -10 -9 -8 --------- Run | Yrd Mat Min Exi Min Mat Machines Accessed 16 | . 6 . 1 . 9 Terminals 9 | . 5 . . . 4 Fabricators . | . . . . . . Repair Stations 3 | . 1 . . . 2 Recycling Units 2 | . . . . . 2 Scanalyzers 1 | . . . . . 1 Garrison Access . | . . . . . . Total Hacks 58 | . 21 . 1 . 36 Successful 37 | . 12 . 1 . 24 Failed 21 | . 9 . . . 12 Catastrophic 4 | . 2 . . . 2 Database Lockouts . | . . . . . . Manual 24 | . 8 . . . 16 Terminals 28 | . 12 . . . 16 Fabricators . | . . . . . . Repair Stations 24 | . 9 . . . 15 Recycling Units 3 | . . . . . 3 Scanalyzers 2 | . . . . . 2 Garrison Access . | . . . . . . Terminal Hacks 6 | . 3 . 1 . 2 Record 1 | . . . 1 . . Robot Analysis 1 | . 1 . . . . Terminal Index 1 | . 1 . . . . Alert Level 1 | . 1 . . . . Unreport Threat 1 | . . . . . 1 Transport Status 1 | . . . . . 1 Fabricator Hacks . | . . . . . . Repair Station Hacks 20 | . 6 . . . 14 Scan Component 11 | . 3 . . . 8 Repair 9 | . 3 . . . 6 Recycling Unit Hacks 3 | . . . . . 3 Process 1 | . . . . . 1 Retrieve Matter 1 | . . . . . 1 Retrieve Components 1 | . . . . . 1 Scanalyzer 1 | . . . . . 1 Retrieve Study 1 | . . . . . 1 Garrison Access Hacks . | . . . . . . Unauthorized Hacks 7 | . 3 . . . 4 Terminals 7 | . 3 . . . 4 Botnet 7 | . 3 . . . 4 Fabricators . | . . . . . . Repair Stations . | . . . . . . Recycling Units . | . . . . . . Scanalyzers . | . . . . . . Garrison Access . | . . . . . . Data Cores Recovered . | . . . . . . Used . | . . . . . . Hacking Detections 13 | . 6 . . . 7 Full Trace Events . | . . . . . . Feedback Events . | . . . . . . Feedback Blocked . | . . . . . . Robot Schematics Acquired . | . . . . . . Robots Built . | . . . . . . Authchips . | . . . . . . Time . | . . . . . . Total Robot Build Rating . | . . . . . . Part Schematics Acquired . | . . . . . . Parts Built . | . . . . . . Authchips . | . . . . . . Time . | . . . . . . Total Part Build Rating . | . . . . . . Part Studies Acquired 1 | . . . . . 1 Parts Repaired 9 | . 3 . . . 6 Time 328 | . 84 . . . 244 Parts Recycled . | . . . . . . Recycled Matter 157 | . . . . . 157 Retrieved Matter 210 | . . . . . 210 Retrieved Components 10 | . . . . . 10 Parts Scanalyzed . | . . . . . . Part Schematics Acquired . | . . . . . . Parts Damaged . | . . . . . . Bothacking | -11 -10 -10 -10 -9 -8 ------------ Run | Yrd Mat Min Exi Min Mat Used RIF Installer . | . . . . . . Robots Hacked . | . . . . . . Non-combat . | . . . . . . Combat . | . . . . . . Robot Hacks Applied . | . . . . . . Relay Couplers Released . | . . . . . . Fabnet Peak Effective % . | . . . . . . Robots Rewired . | . . . . . . Allies Hacked . | . . . . . . Hacks Repelled . | . . . . . . Allies | -11 -10 -10 -10 -9 -8 -------- Run | Yrd Mat Min Exi Min Mat Total Allies . | . . . . . . Largest Group . | . . . . . . Highest-Rated Group . | . . . . . . Highest-Rated Ally . | . . . . . . Total Orders . | . . . . . . Ally Attacks . | . . . . . . Total Damage . | . . . . . . Kills . | . . . . . . Allies Corrupted . | . . . . . . Allies Melted . | . . . . . . Intel | -11 -10 -10 -10 -9 -8 ------- Run | Yrd Mat Min Exi Min Mat Active Infowar (turns) 261 | 19 242 . . . . Seismic 261 | 19 242 . . . . Robot Analysis Total 1 | . 1 . . . . Derelict Logs Recovered 3 | . . 2 . 1 . Drone Launches . | . . . . . . Drone Recoveries . | . . . . . . Exploration | -11 -10 -10 -10 -9 -8 ------------- Run | Yrd Mat Min Exi Min Mat Turns Passed 4565 | 94 993 738 192 292 2256 Spaces Moved 2014 | 44 596 228 154 190 802 Core 27 | . . . . . 27 Treads 179 | . . . . 3 176 Legs 415 | 40 . . . . 375 Wheels 1393 | 4 596 228 154 187 224 Hover . | . . . . . . Flight . | . . . . . . Fastest Speed 90 | 100 100 125 125 125 90 Average Speed 146 | 118 123 126 125 126 179 Slowest Speed 700 | 120 130 130 125 240 700 Overloaded Moves . | . . . . . . Propulsion Burnouts . | . . . . . . Robots Hopped . | . . . . . . Potential Cave-ins . | . . . . . . Cave-ins Triggered . | . . . . . . Exploration Rate (%) 49 | 3 88 51 54 53 46 Regions Visited 5 Branch Regions 3 Pre-discovered Areas 2 | . . 1 1 . . Known Exits Taken . | . . . . . . Unknown Exits Taken 5 | 1 1 1 1 1 . Scrap Searched 2 | . . . . 2 . Spaces Dug 19 | . . . . 19 . Terrain Destroyed 113 | . 2 1 . 78 32 Melee . | . . . . . . Projectile 9 | . 2 1 . . 6 AOE 104 | . . . . 78 26 Terrain Rammed . | . . . . . . Walls Destroyed . | . . . . . . Machines Disabled . | . . . . . . Actions | -11 -10 -10 -10 -9 -8 --------- Run | Yrd Mat Min Exi Min Mat Total 3269 | 63 792 655 153 217 1389 Wait 918 | . 128 415 . 1 374 Move 2009 | 43 595 227 153 189 802 Hop . | . . . . . . Pick Up 30 | . 12 1 . 1 16 Fast Attach 28 | 1 7 . . . 20 Attach 21 | . . 1 . . 20 Detach 13 | . 2 . . . 11 Swap 21 | 2 6 . . 6 7 Drop 27 | 3 10 . . 3 11 Fire 194 | 14 32 11 . 17 120 Melee . | . . . . . . Ram . | . . . . . . Kick 7 | . . . . . 7 Crush 1 | . . . . . 1 Escape Stasis . | . . . . . . Rewire . | . . . . . . Trap . | . . . . . . Miscellaneous . | . . . . . . Route ------- -11/Scrapyard -10/Materials (discovered 4 exits: [*Mat x2] / [*Min x2]) -10/Mines (discovered 2 exits: *Exi / [*Sub]) -10/Exiles -9/Mines -8/Materials (discovered 2 exits: *Fac x2) History --------- Turn | Location | Event 2 | -11/Scrapyard | Discovered new exit (range 1) 95 | -11/Scrapyard | Entered Materials 311 | -10/Materials | Build established: Mutant 462 | -10/Materials | Discovered new exit (range 5) 545 | -10/Materials | Discovered new exit (range 7) 747 | -10/Materials | Discovered new exit (range 15) 794 | -10/Materials | Discovered new exit (range 14) 980 | -10/Materials | Repaired Ion Engine 1007 | -10/Materials | Repaired Lgt. Armor Plating 1041 | -10/Materials | Repaired Imp. Light Cannon 1088 | -10/Materials | Entered Mines 1192 | -10/Mines | Excavation squad dispatched 1192 | -10/Mines | A large section of the Mines collapsed 1442 | -10/Mines | Excavation squad dispatched 1706 | -10/Mines | Discovered new exit (range 4) 1785 | -10/Mines | Found a damaged Exp. Sensor Array with a note attached 1788 | -10/Mines | Found Prototype Device 1796 | -10/Mines | Learned 4 Materials zone layouts 1809 | -10/Mines | Learned location of Zion (-6) 1820 | -10/Mines | Deemed a non-threat by the Exiles lab entrance 1821 | -10/Mines | Discovered new exit (range 5) 1826 | -10/Mines | Entered Exiles 1858 | -10/Exiles | Met 8R-AWN 1879 | -10/Exiles | Met EX-HEX 1915 | -10/Exiles | Met EX-BIN 1953 | -10/Exiles | Met EX-DEC 2004 | -10/Exiles | Discovered new exit (range 14) 2018 | -10/Exiles | Entered Mines 2078 | -9/Mines | Assembled infested the area 2083 | -9/Mines | Assisted by a Guerilla fighting off Assembled 2129 | -9/Mines | Destroyed 15 combat bots 2272 | -9/Mines | Discovered new exit (range 15) 2310 | -9/Mines | Entered Materials 2310 | -8/Materials | Evolved 4 slots: Propulsion x2, Utility x2 2311 | -8/Materials | Identified exit to Factory 2427 | -8/Materials | Repaired Broken Rocket Launcher 2460 | -8/Materials | Repaired Imp. Light Cannon 2577 | -8/Materials | Garrison activated, responded to threat 2808 | -8/Materials | Garrison activated, responded to threat 2934 | -8/Materials | Core integrity fell below 50% 2946 | -8/Materials | Lost 14 parts (2p6n4u2w) 3073 | -8/Materials | Discovered exit to Factory (range 16) 3119 | -8/Materials | Core integrity fell below 20% 3276 | -8/Materials | Build established: Scavenger-Mutant 3680 | -8/Materials | Build established: Mutant 4217 | -8/Materials | Repaired VSS Leg 4251 | -8/Materials | Repaired Rocket Launcher 4312 | -8/Materials | Repaired Enh. Autogun 4351 | -8/Materials | Repaired Carbon-fiber Leg 4372 | -8/Materials | Build established: Scavenger-Mutant 4566 | -8/Materials | Destroyed by G-47 Trooper with Particle Gun Last Messages --------------- 04414_ Acquired Imp. Grenade Launcher. 04415_ Dropped Rocket Launcher. 04472_ Dropped Lrg. Storage Unit. 04490_ Connecting with Scanalyzer... >>Study(Imp. Grenade Launcher) Identified Imp. Grenade Launcher... Downloading performance data... Effective improvements: +10% accuracy 04509_ O-16 Technician: "IFF HANDSHAKE FAILED. SECURING TERMINAL." 04517_ ALERT: Hostiles spotted, dispatching reinforcements to Terminal M009. 04522_ Acquired Weapon Shielding. 04527_ Matter Filter disabled. 04540_ G-47 Trooper destroyed. 04540_ Switching to secondary target: G-47 Trooper. 04553_ G-47 Trooper destroyed. 04563_ B-36 Bruiser destroyed. Map ----- +----------------------------------------------------+ | ????????## ### # | | ????????# ## """# | | ????????# " ## [ """####" | | ????????# + """#??## | | ????????# ## #???? | | ????????## ############???? | | ?????##### #??????????????? | | ?????##! #??????????????? | | ?????#! #??????????????? | | ?????#! ##########?????? | | ?????#! # #?????? | | ?????#! #! "" #?????? | | ?????##! # """#?????? | | ?????##### # S"#?????? | | ?????????# # """#?????? | | ?????????# # """#?????? | | ?????????# # ! = #?????? | | ?????????# + #?????? | | ?????????# # ! #?????? | | ?????????# #############??? | | ?#########+### ??? | | ?# # < ??? | | ?#==""""""" # ??? | | ?#[%""""""" ]###########+??? | | ?#%=""""""" #??????# ??? | | ?#*@%"""""" #??????# ??? | | ?#/lg%%%%"% ######## ??? | | ?# %g%g=[ + # ??? | | ?###########+######## ??? | | ?# # #??????# ??? | | ?# """" # #??????# ??? | | ?# ""S"" # ##?????# ??? | | ?# "" "" + #?????# ??? | | ?# # ###########??? | | ?# # # #????? | | ?# # # "" #????? | | ?# # # "T ###??? | | ############ # "" # ??? | | # # # # ??? | | # + + """ # ??? | | # # # """ # ??? | | # # # """ # ??? | | # # # # ??? | | # # # # ??? | | # # # # ??? | | ???????????????????????????? | | ???????????????????????????? | | ???????????????????????????? | | ???????????????????????????? | | ???????????????????????????? | +----------------------------------------------------+ Best States ------------- Heat Dissipation 67 Coolant Potential 50 Energy Generation 14 Energy Capacity 250 Matter Stores 300 Matter Capacity 300 Sight Range 16 Terrain Scan Density 10 Armor Coverage 300 Weapon Shielding 33 Evasion (%) 55 Targeting Accuracy 6 Recoil Reduction 3 Item Schematics ----------------- None Robot Schematics ------------------ None Fabricated ------------ Nothing Repaired ---------- Ion Engine | 21% | -10/Materials Lgt. Armor Plating | 60% | -10/Materials Imp. Light Cannon | 68% | -10/Materials Rocket Launcher | 61% | -8/Materials | Broken Imp. Light Cannon | 54% | -8/Materials VSS Leg | 36% | -8/Materials Rocket Launcher | 52% | -8/Materials Enh. Autogun | 65% | -8/Materials Carbon-fiber Leg | 53% | -8/Materials Studied --------- Imp. Grenade Launcher | -8/Materials | Hacked Alien Tech Used ----------------- None Achievements -------------- None Challenges ------------ None Game ------ Seed FortressEnhancedReplicator Manual? 0 Play Time 00:37:06 Cumulative 192.7 hours Start 2026.04.20 @ 18:02:44 End 2026.04.20 @ 19:04:06 Sessions 1 Manual Loads 0 Difficulty Rogue Special Mode None Game No. 116 Rogue 116 Adventurer 0 Explorer 0 Win Type - Total 6 Types 3/0/1/1/0/0/0/1/0/0 Lore% 64 Gallery% 57 Achievement% 50 Wizard Run 0 Options --------- Layout 2 ASCII 0 Keyboard 1 Movement Arrows Keybinds 0 Fullscreen 2 Font 24/Terminus Map View 50x44 Zoom Use 0% Tactical HUD 1 Map Filters NONE Filters NONE Steam 1 RUN: 26841d09-0278-4513-bef4-de3c60f1a680